[Event "Seniors-LEM-65 Sachsen-Anhalt 2024"]
[Site "Magdeburg"]
[Date "2024.07.02"]
[Round "2.20"]
[White "Eberhardt, Michael"]
[Black "Christen, Pierre"]
[Result "0-1"]
[ECO "B12"]
[WhiteElo "1801"]
[BlackElo "1946"]
[Annotator "NA RC"]
[PlyCount "128"]
[EventDate "2024.06.25"]
[EventType "swiss"]
[EventCountry "GER"]
[SourceTitle "playchess.com"]
[Source "ChessBase"]
[SourceQuality "1"]
[TimeControl "40/5400+30:1800+30"]

1. e4 {[%emt 0:00:22]} c6 {[%emt 0:00:15]} 2. d4 {[%emt 0:00:16]} d5 {[%emt 0:00:19]} 3. Bd3 {[%emt 0:00:12]} dxe4 {[%emt 0:01:16]} 4. Bxe4 {[%emt 0:00:15]} Nf6 {[%emt 0:01:00]} 5. Bf3 {[%emt 0:01:06]} Bf5 {[%emt 0:05:51]} 6. Nc3 {[%emt 0:00:25]} e6 {[%emt 0:02:33]} 7. Nge2 {[%emt 0:10:35]} Bd6 {[%emt 0:03:49]} 8. Bf4 {[%emt 0:01:16]} O-O {[%emt 0:05:12]} 9. Bxd6 {[%emt 0:00:18]} Qxd6 {[%emt 0:00:15]} 10. O-O {[%emt 0:00:23]} Nbd7 {[%emt 0:03:26]} 11. Ng3 {[%emt 0:00:31]} Bg6 {[%emt 0:01:02]} 12. Re1 {[%emt 0:03:08]} Rad8 {[%emt 0:02:01]} 13. Nge4 {[%emt 0:04:58]} Nxe4 {[%emt 0:04:36]} 14. Bxe4 {[%emt 0:04:54]} Nf6 {[%emt 0:02:46]} 15. Bxg6 {[%emt 0:00:49]} hxg6 {[%emt 1:03:39]} 16. Ne2 {[%emt 0:07:04]} b5 {[%emt 0:00:00]} 17. Qd3 {[%emt 0:02:33]} a6 {[%emt 0:00:00]} 18. Rad1 {[%emt 0:02:04]} Nd5 {[%emt 0:00:00]} 19. a3 {[%emt 0:04:21]} Rd7 {[%emt 0:00:00]} 20. c4 {[%emt 0:01:01]} Nf6 {[%emt 0:00:00]} 21. c5 {[%emt 0:04:44]} Qc7 {[%emt 0:00:00]} 22. Qf3 {[%emt 0:01:39]} Rfd8 {[%emt 0:00:00]} 23. b4 $14 {[%emt 0:09:20]} Rd5 {[%emt 0:00:00]} 24. h3 {[%emt 0:06:52]} Rf5 {[%emt 0:00:00]} 25. Qg3 {[%emt 0:04:03]} Qxg3 {[%emt 0:00:00]} 26. Nxg3 {[%emt 0:01:28]} Rfd5 {[%emt 0:00:00]} 27. Ne4 {[%emt 0:02:10]} Rxd4 {[%emt 0:00:00]} 28. Nd6 {[%emt 0:05:38]} Rxd1 {[%emt 0:00:00]} 29. Rxd1 {[%emt 0:00:09]} Ne8 {[%emt 0:00:00]} 30. Kf1 {[%emt 0:01:10]} Nxd6 {[%emt 0:00:00]} 31. cxd6 {[%emt 0:22:16]} Rd7 {[%emt 0:08:00]} 32. Ke2 {[%emt 0:00:00]} f6 {[%emt 0:00:30]} 33. Ke3 {[%emt 0:00:00]} e5 {[%emt 0:00:00]} 34. f4 {[%emt 0:00:00]} exf4+ {[%emt 0:00:00]} 35. Kxf4 {[%emt 0:00:00]} Kf7 {[%emt 0:00:00]} 36. g4 {[%emt 0:00:00]} Ke6 {[%emt 0:00:00]} 37. Re1+ {[%emt 0:00:00]} Kxd6 {[%emt 0:00:00]} 38. Re8 {[%emt 0:03:30]} a5 {[%emt 0:03:00]} 39. Re3 {[%emt 0:00:00]} axb4 {[%emt 0:00:00]} 40. axb4 {[%emt 0:00:00]} Kc7 {[%emt 0:00:00]} 41. Rb3 {[%emt 0:20:36]} Rd4+ {[%emt 0:08:44]} 42. Ke3 {[%emt 0:02:49]} Rc4 {[%emt 0:00:46]} 43. Kd3 {[%emt 0:01:59]} g5 {[%emt 0:00:45]} 44. Ke3 {[%emt 0:02:55]} Kd7 {[%emt 0:00:36]} 45. Ra3 {[%emt 0:01:45]} Rxb4 {[%emt 0:00:22]} 46. Ra7+ {[%emt 0:00:16]} Ke6 {[%emt 0:00:11]} 47. Rxg7 {[%emt 0:00:23]} Rb3+ {[%emt 0:00:36]} 48. Kd4 {[%emt 0:00:33]} Rxh3 {[%emt 0:00:24]} 49. Rc7 {[%emt 0:02:05]} Kd6 {[%emt 0:00:20]} 50. Rf7 {[%emt 0:00:48]} Rf3 {[%emt 0:00:20]} 51. Rf8 {[%emt 0:00:37]} c5+ {[%emt 0:00:24]} 52. Ke4 {[%emt 0:00:27]} Rf4+ {[%emt 0:00:13]} 53. Ke3 {[%emt 0:00:21]} c4 {[%emt 0:00:14]} 54. Rd8+ {[%emt 0:00:33]} Kc5 {[%emt 0:00:26]} 55. Rc8+ {[%emt 0:00:00]} Kb4 {[%emt 0:00:00]} 56. Kd2 {[%emt 0:00:00]} Kb3 {[%emt 0:00:00]} 57. Kc1 {[%emt 0:00:00]} c3 {[%emt 0:00:00]} 58. Kd1 {[%emt 0:00:00]} Kb2 {[%emt 0:00:00]} 59. Rc5 {[%emt 0:00:00]} b4 {[%emt 0:00:00]} 60. Ke1 {[%emt 0:00:00]} c2 {[%emt 0:00:00]} 61. Kd2 {[%emt 0:00:00]} c1=Q+ {[%emt 0:00:00]} 62. Rxc1 {[%emt 0:00:00]} Rf2+ {[%emt 0:00:00]} 63. Ke3 {[%emt 0:00:00]} Kxc1 {[%emt 0:00:00]} 64. Kxf2 {[%emt 0:06:53]} b3 0-1

[Event "Seniors-LEM-65 Sachsen-Anhalt 2024"]
[Site "Magdeburg"]
[Date "2024.07.02"]
[Round "2.23"]
[White "Boettcher, Frank"]
[Black "Erler, Rainer"]
[Result "0-1"]
[ECO "D02"]
[WhiteElo "1848"]
[BlackElo "2121"]
[Annotator "NA RC"]
[PlyCount "73"]
[EventDate "2024.06.25"]
[EventType "swiss"]
[EventCountry "GER"]
[SourceTitle "playchess.com"]
[Source "ChessBase"]
[SourceQuality "1"]
[TimeControl "40/5400+30:1800+30"]

1. d4 {[%emt 0:00:06]} d5 {[%emt 0:00:05]} 2. Nf3 {[%emt 0:00:14]} c5 {[%emt 0:00:02]} 3. c3 {[%emt 0:01:29]} e6 {[%emt 0:00:06]} 4. Qc2 {[%emt 0:01:39]} Nc6 {[%emt 0:00:30]} 5. Bf4 {[%emt 0:01:55]} Nf6 {[%emt 0:00:16]} 6. Nbd2 {[%emt 0:00:16]} Qb6 {[%emt 0:01:16]} 7. e3 {[%emt 0:01:22]} Nh5 {[%emt 0:02:46] D02: 1 d4 d5 2 Nf3 sidelines, including 2...Nf6 3 g3 and 2...Nf6 3 Bf4.} 8. Bg3 {[%emt 0:00:36]} Nxg3 {[%emt 0:02:22]} 9. hxg3 {[%emt 0:03:14]} h6 {[%emt 0:01:40]} 10. Be2 {[%emt 0:08:52]} Bd7 {[%emt 0:01:54]} 11. g4 {[%emt 0:00:45]} Rc8 {[%emt 0:00:56]} 12. dxc5 {[%emt 0:05:18]} Bxc5 {[%emt 0:01:03]} 13. Nb3 {[%emt 0:00:50]} Bd6 {[%emt 0:00:43]} 14. Qd3 {[%emt 0:05:21]} a6 {[%emt 0:10:29]} 15. g5 {[%emt 0:06:06]} Ne7 {[%emt 0:14:20]} 16. gxh6 {[%emt 0:09:56]} gxh6 {[%emt 0:00:07]} 17. Ng5 {[%emt 0:00:36]} Ng6 {[%emt 0:06:11]} 18. Nf3 {[%emt 0:06:24]} Ke7 {[%emt 0:03:00]} 19. Nh4 {[%emt 0:06:37]} Ne5 {[%emt 0:05:26]} 20. Qd4 {[%emt 0:01:23]} Qxd4 {[%emt 0:00:05]} 21. Nxd4 {[%emt 0:01:49]} b5 {[%emt 0:03:11]} 22. a3 {[%emt 0:00:28]} Nc4 {[%emt 0:02:18]} 23. Bxc4 {[%emt 0:06:23]} bxc4 {[%emt 0:00:51]} 24. Kd2 $17 {[%emt 0:02:28]} Rb8 {[%emt 0:00:15]} 25. Kc1 {[%emt 0:03:24]} Rb6 {[%emt 0:01:44]} 26. Ra2 {[%emt 0:04:25]} Rg8 {[%emt 0:04:06]} 27. g3 {[%emt 0:01:46]} Rgb8 {[%emt 0:04:52]} 28. Rh2 {[%emt 0:06:17]} Kf6 {[%emt 0:01:09]} 29. Nhf3 {[%emt 0:01:18]} Rxb2 {[%emt 0:06:54]} 30. Ra1 {[%emt 0:04:30]} Ba4 {[%emt 0:10:17]} 31. Ne1 {[%emt 0:00:18]} Bxg3 {[%emt 0:00:43]} 32. Rg2 {[%emt 0:03:11]} Be5 {[%emt 0:03:56]} 33. f4 {[%emt 0:01:36]} Bxd4 {[%emt 0:02:22]} 34. Rxb2 {[%emt 0:00:27]} Bxe3+ {[%emt 0:00:01]} 35. Kb1 {[%emt 0:00:21]} Rxb2+ {[%emt 0:01:57]} 36. Kxb2 {[%emt 0:00:07]} Bxf4 {[%emt 0:00:02]} 37. Nc2 {[%emt 0:01:12]} 0-1

[Event "Seniors-LEM-65 Sachsen-Anhalt 2024"]
[Site "Magdeburg"]
[Date "2024.07.02"]
[Round "2.24"]
[White "Andersen, Knut"]
[Black "Neubauer, Uwe"]
[Result "1-0"]
[ECO "B09"]
[WhiteElo "2104"]
[BlackElo "1827"]
[Annotator "RC"]
[PlyCount "51"]
[EventDate "2024.06.25"]
[EventType "swiss"]
[EventCountry "GER"]
[SourceTitle "playchess.com"]
[Source "ChessBase"]
[SourceQuality "1"]
[TimeControl "40/5400+30:1800+30"]

1. e4 {[%emt 0:00:05]} d6 {[%emt 0:00:16]} 2. d4 {[%emt 0:00:18]} Nf6 {[%emt 0:00:10]} 3. Nc3 {[%emt 0:00:06]} g6 {[%emt 0:00:26]} 4. f4 {[%emt 0:00:16]} Bg7 {[%emt 0:00:28]} 5. Nf3 {[%emt 0:00:07]} Bg4 {[%emt 0:01:18]} 6. Be2 {[%emt 0:00:40]} O-O {[%emt 0:00:37]} 7. Be3 {[%emt 0:01:07]} e6 {[%emt 0:03:31]} 8. h3 {[%emt 0:00:41]} Bxf3 {[%emt 0:00:22]} 9. Bxf3 {[%emt 0:00:05]} c6 {[%emt 0:02:27]} 10. Qd2 {[%emt 0:03:53]} Re8 {[%emt 0:02:06]} 11. O-O-O {[%emt 0:01:26]} b5 {[%emt 0:02:20]} 12. e5 {[%emt 0:04:30]} Nd5 {[%emt 0:01:47]} 13. Nxd5 {[%emt 0:00:09]} cxd5 {[%emt 0:00:46]} 14. h4 {[%emt 0:01:55]} Nc6 {[%emt 0:02:24]} 15. Kb1 {[%emt 0:02:32]} dxe5 {[%emt 0:01:34]} 16. fxe5 {[%emt 0:01:22]} Qa5 {[%emt 0:02:42]} 17. c3 {[%emt 0:02:14]} b4 {[%emt 0:06:14]} 18. c4 {[%emt 0:08:13]} Rac8 {[%emt 0:06:55]} 19. cxd5 {[%emt 0:00:55]} exd5 {[%emt 0:00:54]} 20. Rc1 {[%emt 0:08:10]} Qd8 {[%emt 0:07:10]} 21. Rc5 {[%emt 0:03:27]} Ne7 {[%emt 0:04:57]} 22. Rhc1 {[%emt 0:00:49]} Rxc5 {[%emt 0:01:00]} 23. Rxc5 {[%emt 0:00:07]} a5 {[%emt 0:03:58]} 24. Bg5 {[%emt 0:03:26]} Qb6 {[%emt 0:11:35]} 25. Bxe7 {[%emt 0:02:11]} Rxe7 {[%emt 0:00:19]} 26. Rc8+ {[%emt 0:00:23]} 1-0

[Event "Seniors-LEM-65 Sachsen-Anhalt 2024"]
[Site "Magdeburg"]
[Date "2024.07.02"]
[Round "2.25"]
[White "Zechel, Rolf-Ruediger"]
[Black "Ruether, Rudolf"]
[Result "0-1"]
[ECO "D03"]
[WhiteElo "1870"]
[BlackElo "2065"]
[Annotator "NA RC"]
[PlyCount "80"]
[EventDate "2024.06.25"]
[EventType "swiss"]
[EventCountry "GER"]
[SourceTitle "playchess.com"]
[Source "ChessBase"]
[SourceQuality "1"]
[TimeControl "40/5400+30:1800+30"]

1. d4 {[%emt 0:00:03]} Nf6 {[%emt 0:00:15]} 2. Bg5 {[%emt 0:00:16]} d5 {[%emt 0:01:07]} 3. e3 {[%emt 0:00:55]} e6 {[%emt 0:00:27]} 4. Nd2 {[%emt 0:01:46]} Be7 {[%emt 0:00:29]} 5. Bd3 {[%emt 0:00:48]} h6 {[%emt 0:00:33]} 6. Bh4 {[%emt 0:00:57]} b6 {[%emt 0:00:33]} 7. Ngf3 {[%emt 0:01:37]} O-O {[%emt 0:01:11]} 8. O-O {[%emt 0:01:09]} c5 {[%emt 0:01:26]} 9. c3 {[%emt 0:00:35]} Nc6 {[%emt 0:11:56]} 10. Qe2 {[%emt 0:07:04]} Bb7 {[%emt 0:01:46]} 11. Rad1 {[%emt 0:03:14]} Nd7 {[%emt 0:06:23]} 12. Bg3 {[%emt 0:05:36]} Re8 {[%emt 0:02:23]} 13. e4 {[%emt 0:01:54]} cxd4 {[%emt 0:00:48]} 14. cxd4 {[%emt 0:00:32]} dxe4 {[%emt 0:03:32]} 15. Nxe4 {[%emt 0:01:17]} Nb4 {[%emt 0:02:38]} 16. Bb1 {[%emt 0:04:02]} Ba6 {[%emt 0:01:56]} 17. Qe3 {[%emt 0:03:26]} Nd5 {[%emt 0:02:45]} 18. Qd2 {[%emt 0:02:21]} Bxf1 {[%emt 0:07:37]} 19. Kxf1 {[%emt 0:00:30]} N7f6 {[%emt 0:01:30]} 20. Ne5 {[%emt 0:03:33]} Rc8 {[%emt 0:04:38]} 21. f4 {[%emt 0:06:09]} Nxe4 {[%emt 0:09:15]} 22. Bxe4 {[%emt 0:00:39]} Bh4 {[%emt 0:00:36]} 23. Bb1 {[%emt 0:07:51]} Bxg3 {[%emt 0:16:08]} 24. hxg3 {[%emt 0:00:19]} Rc7 {[%emt 0:01:59]} 25. Qd3 {[%emt 0:01:31]} f5 {[%emt 0:04:15]} 26. a3 {[%emt 0:02:45]} Qf6 {[%emt 0:03:43]} 27. Kf2 {[%emt 0:03:52]} Rec8 {[%emt 0:01:08]} 28. Rd2 {[%emt 0:00:40]} g6 {[%emt 0:03:14]} 29. Ba2 {[%emt 0:03:29]} Kg7 {[%emt 0:01:25]} 30. Bxd5 {[%emt 0:02:09]} exd5 {[%emt 0:00:07]} 31. Kf3 {[%emt 0:05:56]} Rc1 {[%emt 0:01:36]} 32. g4 {[%emt 0:03:07]} fxg4+ {[%emt 0:01:06]} 33. Kxg4 {[%emt 0:02:16]} Rf8 {[%emt 0:01:46]} 34. g3 {[%emt 0:01:45]} Qf5+ {[%emt 0:03:45]} 35. Kf3 {[%emt 0:03:07]} Rf6 {[%emt 0:02:09]} 36. Re2 {[%emt 0:03:20]} Qh3 {[%emt 0:01:40]} 37. Ng4 {[%emt 0:03:28]} Qh1+ {[%emt 0:00:29]} 38. Ke3 {[%emt 0:01:25]} Re6+ {[%emt 0:00:31]} 39. Ne5 {[%emt 0:00:23]} Qg1+ {[%emt 0:00:20]} 40. Kd2 {[%emt 0:00:17]} Rd1+ {[%emt 0:00:15]} 0-1

[Event "Seniors-LEM-65 Sachsen-Anhalt 2024"]
[Site "Magdeburg"]
[Date "2024.07.02"]
[Round "2.26"]
[White "Jacob, Barbara"]
[Black "Pranner, Marion"]
[Result "1-0"]
[ECO "A00"]
[WhiteElo "1824"]
[BlackElo "2055"]
[Annotator "NA RC"]
[PlyCount "77"]
[EventDate "2024.06.25"]
[EventType "swiss"]
[EventCountry "GER"]
[SourceTitle "playchess.com"]
[Source "ChessBase"]
[SourceQuality "1"]
[TimeControl "40/5400+30:1800+30"]

1. d3 {[%emt 0:00:14]} e5 {[%emt 0:00:49]} 2. b3 {[%emt 0:00:28]} d5 {[%emt 0:00:23]} 3. Bb2 {[%emt 0:00:13]} Nc6 {[%emt 0:00:43]} 4. Nd2 {[%emt 0:01:05]} Be6 {[%emt 0:02:11]} 5. e3 {[%emt 0:00:59]} Nf6 {[%emt 0:02:19]} 6. h3 {[%emt 0:00:41] A00: Irregular Openings.} Bd6 {[%emt 0:02:33]} 7. g3 {[%emt 0:01:18]} Qd7 {[%emt 0:01:53]} 8. Bg2 {[%emt 0:00:51]} O-O-O {[%emt 0:08:01]} 9. Ne2 {[%emt 0:06:03]} Be7 {[%emt 0:17:03]} 10. a3 {[%emt 0:04:45]} h5 {[%emt 0:06:35]} 11. d4 {[%emt 0:07:00]} exd4 {[%emt 0:04:24]} 12. Nxd4 {[%emt 0:03:12]} Nxd4 {[%emt 0:00:13]} 13. Bxd4 {[%emt 0:00:11]} a6 {[%emt 0:02:10]} 14. Nf3 {[%emt 0:05:48]} Rhg8 {[%emt 0:06:17]} 15. Ng5 {[%emt 0:04:11]} Qc6 {[%emt 0:03:44]} 16. Nxe6 {[%emt 0:01:21]} fxe6 {[%emt 0:00:15]} 17. O-O {[%emt 0:03:34]} Qd6 {[%emt 0:01:14]} 18. b4 {[%emt 0:01:08]} g6 {[%emt 0:06:13]} 19. Bc5 {[%emt 0:02:52]} Qd7 {[%emt 0:00:08]} 20. Bxe7 {[%emt 0:01:22]} Qxe7 {[%emt 0:00:02]} 21. Qe2 {[%emt 0:02:53]} c6 {[%emt 0:02:21]} 22. Rfd1 {[%emt 0:00:48]} Ne4 {[%emt 0:03:55]} 23. Bxe4 {[%emt 0:00:19]} dxe4 {[%emt 0:00:04]} 24. Qc4 {[%emt 0:00:36]} Qf6 {[%emt 0:03:26]} 25. Qxe4 {[%emt 0:03:19]} Rgf8 {[%emt 0:00:48]} 26. Rxd8+ {[%emt 0:00:23]} Rxd8 $16 {[%emt 0:00:13]} 27. Rf1 {[%emt 0:01:28]} Rd2 {[%emt 0:00:27]} 28. c4 {[%emt 0:16:59]} Ra2 {[%emt 0:00:53]} 29. Qd3 {[%emt 0:03:16]} g5 {[%emt 0:03:14]} 30. e4 {[%emt 0:07:17]} e5 {[%emt 0:02:40]} 31. c5 {[%emt 0:00:57]} g4 {[%emt 0:11:15]} 32. hxg4 {[%emt 0:01:30]} hxg4 {[%emt 0:00:02]} 33. Qb3 {[%emt 0:00:30]} Rd2 {[%emt 0:02:54]} 34. Qg8+ {[%emt 0:00:37]} Kc7 {[%emt 0:00:08]} 35. Qxg4 {[%emt 0:00:47]} Qd8 {[%emt 0:03:03]} 36. Qg7+ {[%emt 0:00:40]} Rd7 {[%emt 0:00:51]} 37. Qxe5+ {[%emt 0:00:09]} Kc8 {[%emt 0:00:22]} 38. Qf5 {[%emt 0:02:36]} Kc7 {[%emt 0:01:42]} 39. Kg2 {[%emt 0:04:45]} 1-0

[Event "Seniors-LEM-65 Sachsen-Anhalt 2024"]
[Site "Magdeburg"]
[Date "2024.07.02"]
[Round "2.27"]
[White "Haase, Reinhard"]
[Black "Juergens, Peter"]
[Result "1-0"]
[ECO "E17"]
[WhiteElo "2044"]
[BlackElo "2194"]
[Annotator "RC"]
[PlyCount "43"]
[EventDate "2024.06.25"]
[EventType "swiss"]
[EventCountry "GER"]
[SourceTitle "playchess.com"]
[Source "ChessBase"]
[SourceQuality "1"]
[TimeControl "40/5400+30:1800+30"]

1. d4 {[%emt 0:00:05]} Nf6 {[%emt 0:00:04]} 2. c4 {[%emt 0:00:17]} e6 {[%emt 0:00:09]} 3. g3 {[%emt 0:00:32]} d5 {[%emt 0:00:42]} 4. Bg2 {[%emt 0:00:34]} Be7 {[%emt 0:00:27]} 5. Nf3 {[%emt 0:01:12]} O-O {[%emt 0:00:36]} 6. O-O {[%emt 0:02:50]} Nbd7 {[%emt 0:04:27]} 7. cxd5 {[%emt 0:04:37]} exd5 {[%emt 0:00:43]} 8. Nc3 {[%emt 0:00:19]} b6 {[%emt 0:01:00]} 9. b3 {[%emt 0:03:11]} Bb7 {[%emt 0:02:41]} 10. Bb2 {[%emt 0:03:53]} c5 {[%emt 0:04:33]} 11. Rc1 {[%emt 0:01:44]} a6 {[%emt 0:01:22]} 12. Ne5 {[%emt 0:07:38]} cxd4 {[%emt 1:19:46]} 13. Nxd7 {[%emt 1:10:08]} Qxd7 {[%emt 0:00:00]} 14. Qxd4 {[%emt 0:00:00]} Bc5 {[%emt 0:00:00]} 15. Qd3 {[%emt 0:00:00]} Qe6 {[%emt 0:00:00]} 16. Na4 {[%emt 0:00:00]} Ne4 {[%emt 0:00:00]} 17. Nxc5 {[%emt 0:00:00]} Nxc5 {[%emt 0:00:00]} 18. Qd4 {[%emt 0:00:00]} f6 {[%emt 0:00:00]} 19. Ba3 {[%emt 0:00:00]} Qxe2 {[%emt 0:00:00]} 20. Bxc5 {[%emt 0:00:00]} bxc5 {[%emt 0:00:00]} 21. Rxc5 {[%emt 0:00:00]} Qxa2 {[%emt 0:00:00]} 22. Rc7 1-0

[Event "Seniors-LEM-65 Sachsen-Anhalt 2024"]
[Site "Magdeburg"]
[Date "2024.07.02"]
[Round "2.28"]
[White "Kopp, Peter"]
[Black "Huelle, Gunter"]
[Result "1-0"]
[ECO "C00"]
[WhiteElo "2014"]
[BlackElo "1766"]
[Annotator "NA RC"]
[PlyCount "91"]
[EventDate "2024.06.25"]
[EventType "swiss"]
[EventCountry "GER"]
[SourceTitle "playchess.com"]
[Source "ChessBase"]
[SourceQuality "1"]
[TimeControl "40/5400+30:1800+30"]

1. e4 {[%emt 0:00:03]} e6 {[%emt 0:02:41]} 2. d3 {[%emt 0:00:09]} d5 {[%emt 0:05:46]} 3. Nd2 {[%emt 0:00:08]} c5 {[%emt 0:01:20]} 4. Ngf3 {[%emt 0:00:09]} Nc6 {[%emt 0:01:43]} 5. g3 {[%emt 0:00:06]} Nf6 {[%emt 0:07:06]} 6. Bg2 {[%emt 0:00:09]} dxe4 {[%emt 1:14:54]} 7. dxe4 {[%emt 0:00:09]} Be7 {[%emt 0:00:00]} 8. O-O {[%emt 0:00:14]} O-O {[%emt 0:00:00]} 9. Re1 {[%emt 0:00:26]} e5 {[%emt 0:00:00]} 10. c3 {[%emt 0:00:26]} Qc7 {[%emt 0:00:00]} 11. Bf1 {[%emt 0:03:52] C00: French: Unusual White 2nd moves.} h6 {[%emt 0:00:00]} 12. a4 {[%emt 0:02:32]} Be6 {[%emt 0:00:00]} 13. Bc4 {[%emt 0:03:42]} Bxc4 {[%emt 0:00:00]} 14. Nxc4 {[%emt 0:00:08]} Rfd8 {[%emt 0:00:00]} 15. Qc2 {[%emt 0:00:43]} b6 {[%emt 0:00:00]} 16. Nh4 {[%emt 0:03:42]} Ne8 {[%emt 0:00:00]} 17. Ng2 {[%emt 0:02:52]} Nd6 {[%emt 0:00:00]} 18. Nce3 {[%emt 0:03:41]} Bf8 {[%emt 0:00:00]} 19. Nd5 {[%emt 0:02:22]} Qb7 {[%emt 0:00:00]} 20. f3 {[%emt 0:02:18]} Ne7 {[%emt 0:00:00]} 21. Nge3 {[%emt 0:03:46]} Nxd5 {[%emt 0:00:00]} 22. Nxd5 {[%emt 0:00:39]} c4 {[%emt 0:00:03]} 23. g4 $11 {[%emt 0:08:06]} (23. a5 $142) 23... f5 {[%emt 0:02:34]} 24. gxf5 {[%emt 0:11:52]} Nxf5 {[%emt 0:00:03]} 25. Ne3 {[%emt 0:00:56]} Nxe3 {[%emt 0:00:52]} 26. Bxe3 {[%emt 0:00:09]} Rd7 {[%emt 0:02:25]} 27. Rad1 {[%emt 0:01:31]} Rad8 {[%emt 0:00:09]} 28. b4 {[%emt 0:04:46]} Qc6 {[%emt 0:02:23]} 29. Kf1 {[%emt 0:07:47]} Rd6 {[%emt 0:00:52]} 30. Ke2 {[%emt 0:01:21]} Qc8 {[%emt 0:01:01]} 31. Rxd6 {[%emt 0:00:46]} Rxd6 {[%emt 0:00:12]} 32. Rd1 {[%emt 0:00:02]} Qd7 {[%emt 0:01:19]} 33. Rxd6 {[%emt 0:00:08]} Qxd6 {[%emt 0:00:08]} 34. Qd2 {[%emt 0:00:26]} Kf7 {[%emt 0:00:29]} 35. b5 {[%emt 0:08:30]} Be7 {[%emt 0:00:47]} 36. a5 {[%emt 0:04:23]} Qxd2+ {[%emt 0:00:53]} 37. Kxd2 {[%emt 0:00:05]} Bd8 {[%emt 0:00:09]} 38. a6 {[%emt 0:01:06]} g5 {[%emt 0:00:13]} 39. Ke2 {[%emt 0:02:04]} Kg6 {[%emt 0:00:32]} 40. Kf2 {[%emt 0:01:12]} Kh5 {[%emt 0:00:17]} 41. Kg2 {[%emt 0:31:03]} Kg6 {[%emt 0:09:16]} 42. Kg3 {[%emt 0:00:00]} h5 {[%emt 0:03:29]} 43. h3 {[%emt 0:00:00]} Kg7 {[%emt 0:04:47]} 44. h4 {[%emt 0:00:00]} gxh4+ {[%emt 0:00:19]} 45. Kh3 {[%emt 0:00:00]} Kg6 {[%emt 0:00:38]} 46. f4 {[%emt 0:00:00]} 1-0

[Event "Seniors-LEM-65 Sachsen-Anhalt 2024"]
[Site "Magdeburg"]
[Date "2024.07.02"]
[Round "2.29"]
[White "Roth, Heinz Georg"]
[Black "Klettke, Wolfgang"]
[Result "0-1"]
[ECO "B22"]
[WhiteElo "1830"]
[BlackElo "2008"]
[Annotator "NA RC"]
[PlyCount "50"]
[EventDate "2024.06.25"]
[EventType "swiss"]
[EventCountry "GER"]
[SourceTitle "playchess.com"]
[Source "ChessBase"]
[SourceQuality "1"]
[TimeControl "40/5400+30:1800+30"]

1. e4 {[%emt 0:00:04]} c5 {[%emt 0:00:02]} 2. c3 {[%emt 0:00:12]} Nf6 {[%emt 0:00:12]} 3. e5 {[%emt 0:01:11]} Nd5 {[%emt 0:00:05]} 4. d4 {[%emt 0:00:55]} cxd4 {[%emt 0:01:06]} 5. cxd4 {[%emt 0:02:56]} e6 {[%emt 0:00:12]} 6. Nc3 {[%emt 0:01:11]} Nxc3 {[%emt 0:00:06]} 7. bxc3 {[%emt 0:00:13]} d6 {[%emt 0:00:53]} 8. Nf3 {[%emt 0:10:00] 8.f4 is the fancy move.} Be7 {[%emt 0:04:51]} 9. Bd3 {[%emt 0:07:19] B22: Sicilian: 2 c3.} Nc6 {[%emt 0:04:54]} 10. Qc2 {[%emt 0:01:50]} h6 {[%emt 0:03:20]} 11. O-O $146 {[%emt 0:03:04]} ({Predecessor:} 11. Bf4 dxe5 12. Nxe5 Nxe5 13. Bxe5 Bf6 14. Bg3 Bd7 15. O-O O-O 16. Rae1 Rc8 17. Be4 Bxd4 18. Bxb7 Rxc3 {0-1 Kovalenko,V-Dudnikov,N Dnipropetrovsk Sinitsin Memorial 6th 2007 (3.8)}) 11... dxe5 {[%emt 0:02:56]} 12. dxe5 {[%emt 0:01:25]} Qc7 {[%emt 0:01:24]} 13. Bf4 {[%emt 0:04:30]} O-O {[%emt 0:02:46]} 14. Rad1 {[%emt 0:03:42]} b6 {[%emt 0:00:37]} 15. Qc1 {[%emt 0:01:57]} h5 {[%emt 0:10:38]} 16. Rfe1 {[%emt 0:04:07]} Bb7 {[%emt 0:02:00]} 17. Bg5 {[%emt 0:00:57]} Rad8 {[%emt 0:00:57]} 18. Qf4 {[%emt 0:05:51]} Rd5 {[%emt 0:13:23]} 19. Bf6 {[%emt 0:07:18]} Bxf6 {[%emt 0:02:49]} 20. Qe4 {[%emt 0:00:33]} Rxd3 {[%emt 0:00:16]} 21. exf6 {[%emt 0:02:47]} Rxd1 {[%emt 0:00:54]} 22. Rxd1 {[%emt 0:00:01]} gxf6 {[%emt 0:01:34]} 23. Qh4 {[%emt 0:00:43]} Ne5 {[%emt 0:01:42]} 24. Qxf6 $19 {[%emt 0:03:10]} Bxf3 {[%emt 0:00:19]} 25. gxf3 {[%emt 0:03:31]} Ng6 {[%emt 0:00:33]} 0-1

[Event "Seniors-LEM-65 Sachsen-Anhalt 2024"]
[Site "Magdeburg"]
[Date "2024.07.02"]
[Round "2.30"]
[White "Reimers, Christine"]
[Black "Poetke, Dan-Peter"]
[Result "0-1"]
[ECO "A03"]
[WhiteElo "1779"]
[BlackElo "1968"]
[Annotator "NA RC"]
[PlyCount "84"]
[EventDate "2024.06.25"]
[EventType "swiss"]
[EventCountry "GER"]
[SourceTitle "playchess.com"]
[Source "ChessBase"]
[SourceQuality "1"]
[TimeControl "40/5400+30:1800+30"]

1. f4 {[%emt 0:00:03]} d5 {[%emt 0:00:28]} 2. Nf3 {[%emt 0:00:12]} g6 {[%emt 0:00:02]} 3. d3 {[%emt 0:00:33]} Bg7 {[%emt 0:00:14]} 4. g3 {[%emt 0:00:42]} Nf6 {[%emt 0:00:10]} 5. Bg2 {[%emt 0:00:10]} O-O {[%emt 0:00:12]} 6. O-O {[%emt 0:00:11]} c5 {[%emt 0:02:15]} 7. c3 {[%emt 0:01:01]} Nc6 {[%emt 0:01:24]} 8. Qc2 {[%emt 0:01:51]} Qc7 {[%emt 0:05:16]} 9. Na3 $11 {[%emt 0:09:56]} a6 {[%emt 0:07:14]} 10. Qd2 {[%emt 0:03:50]} b5 {[%emt 0:04:44]} 11. Nc2 {[%emt 0:03:40]} Bb7 {[%emt 0:02:47]} 12. Rb1 {[%emt 0:06:24]} Rad8 {[%emt 0:03:18]} 13. Qd1 {[%emt 0:02:40]} Rfe8 {[%emt 0:03:56]} 14. d4 {[%emt 0:02:21]} Ne4 {[%emt 0:05:11]} 15. Ne5 {[%emt 0:04:39]} Qb6 {[%emt 0:05:12]} 16. e3 {[%emt 0:04:47]} cxd4 {[%emt 0:04:03]} 17. cxd4 {[%emt 0:05:08]} f6 {[%emt 0:02:55]} 18. Nxc6 {[%emt 0:02:11]} Qxc6 {[%emt 0:01:41]} 19. Nb4 {[%emt 0:02:27]} Qc4 {[%emt 0:00:44]} 20. Qb3 {[%emt 0:07:53]} a5 {[%emt 0:08:53]} 21. Nd3 {[%emt 0:02:37]} Rc8 {[%emt 0:06:32]} 22. Bxe4 {[%emt 0:01:53]} Qxb3 {[%emt 0:02:25]} 23. axb3 {[%emt 0:00:36]} dxe4 {[%emt 0:32:24]} 24. Nc5 {[%emt 0:01:31]} Bd5 {[%emt 0:00:00]} 25. Ra1 {[%emt 0:03:08]} Ra8 {[%emt 0:00:00]} 26. Bd2 {[%emt 0:02:58]} b4 {[%emt 0:00:00]} 27. g4 {[%emt 0:02:00]} e5 {[%emt 0:00:00]} 28. f5 {[%emt 0:03:19]} exd4 {[%emt 0:00:00]} 29. exd4 {[%emt 0:02:12]} e3 {[%emt 0:00:00]} 30. Be1 {[%emt 0:00:34]} e2 {[%emt 0:00:00]} 31. Rf2 {[%emt 0:01:05]} Bh6 {[%emt 0:00:00]} 32. fxg6 {[%emt 0:03:37]} Be3 {[%emt 0:00:00]} 33. gxh7+ {[%emt 0:01:04]} Kxh7 {[%emt 0:00:00]} 34. Nd7 {[%emt 0:05:45]} Re6 {[%emt 0:00:00]} 35. Nc5 {[%emt 0:00:41]} Re7 {[%emt 0:00:00]} 36. h3 {[%emt 0:00:47]} Bxd4 {[%emt 0:00:00]} 37. Nd3 {[%emt 0:01:03]} Re3 {[%emt 0:00:00]} 38. Nf4 {[%emt 0:02:55]} Bb7 {[%emt 0:00:00]} 39. Kh2 {[%emt 0:03:12]} Be5 {[%emt 0:03:22]} 40. Bd2 {[%emt 0:01:04]} Rd3 {[%emt 0:02:54]} 41. Rxe2 {[%emt 0:34:02]} Rxd2 {[%emt 0:30:15]} 42. Kg1 {[%emt 0:00:27]} Bd4+ {[%emt 0:00:00]} 0-1